fUST/lending_fUST_20240206
["ID","MTS","AMOUNT","RATE_DAILY","PERIOD"]
[313352231,1707214246273,-2226.69005254,0.00018918,2]
[313352232,1707214246283,-563.010236,0.00018976,2]
[313352233,1707214246293,-820.60094681,0.00018977,2]
[313352234,1707214246305,-815.3538659,0.00018984,2]
[313352235,1707214246316,-6837.8694151,0.00019683,2]
[313352236,1707214246330,-2090.25573355,0.000201,2]
[313352237,1707214246340,-200.0,0.00020819,2]
[313352238,1707214246351,-331.79892809,0.00021,2]
[313352239,1707214246362,-1831.07268714,0.00021084,2]
[313352240,1707214246373,-294.12405739,0.00022,4]
[313352241,1707214246383,-280.0,0.000229,7]
[313352242,1707214246394,-163.94936543,0.00023884,2]
[313352243,1707214246405,-6695.39799874,0.00023954,2]
[313352244,1707214246416,-1562.25953304,0.00023954,2]
[313352245,1707214246427,-352.10366014,0.00023958,2]
[313352246,1707214246442,-15153.75056901,0.0002396,2]
[313352247,1707214246453,-815.3538659,0.00023984,2]
[313352248,1707214246472,-4422.25978283,0.00023987,2]
[313352249,1707214246483,-873.37,0.0002499,3]
[313352250,1707214246494,-727.8,0.0002499,3]
[313352251,1707214246505,-606.5,0.0002499,3]
[313352252,1707214246516,-4038.40501618,0.00024999,2]
[313352253,1707214246527,-181.02956964,0.00025,3]
[313352254,1707214246538,-155.01395126,0.00025,2]
[313352255,1707214246549,-4737.09564271,0.00025,2]
[313352256,1707214246560,-7404.37733039,0.00025,2]
[313352257,1707214246583,-535.03190243,0.00025,2]
[313352258,1707214246593,-1000.0,0.00025,2]
[313352259,1707214246604,-163.94936542,0.00025021,2]
[313352260,1707214246617,-157.681711,0.00025172,2]
[313352261,1707214246628,-151.0,0.00025172,2]
[313352262,1707214246639,-353.77312991,0.00025173,2]
[313352263,1707214246650,-151.61705567,0.00025173,2]
[313352264,1707214246660,-548.92801425,0.00025173,2]
[313352265,1707214246674,-170.12183873,0.00025173,2]
[313352266,1707214246685,-391.0,0.00025191,7]
[313352267,1707214246696,-163.94936542,0.00026158,2]
[313352268,1707214246707,-620.02059232,0.0002673,2]
[313352269,1707214246719,-500.0,0.00026799,2]
[313352270,1707214246730,-500.0,0.00026799,2]
[313352271,1707214246741,-500.0,0.00026799,2]
[313352272,1707214246752,-500.0,0.00026799,2]
[313352273,1707214246763,-243.93336745,0.00026799,2]
[313352274,1707214246776,-500.0,0.00026799,2]
[313352275,1707214246787,-500.0,0.00026799,2]
[313352276,1707214246799,-500.0,0.00026799,2]
[313352277,1707214246811,-338.13175847,0.00026799,2]
[313352278,1707214246827,-500.0,0.00026799,2]
[313352279,1707214246839,-500.0,0.00026799,2]
[313352280,1707214246851,-463.69573795,0.00026799,2]
[313352281,1707214246861,-428.537268,0.00026799,2]
[313352282,1707214246872,-428.537268,0.00026799,2]
[313352283,1707214246883,-73741.16824067,0.000268,2]
[313352284,1707214246894,-428.537268,0.000268,2]
[313352285,1707214246906,-428.537268,0.000268,2]
[313352286,1707214246917,-151.0,0.000268,2]
[313352287,1707214246927,-1168.21889111,0.00026836,5]
[313352288,1707214246937,-40067.42467199,0.000269,2]
[313352289,1707214246951,-1004.93158169,0.000269,2]
[313352290,1707214246964,-11145.07454048,0.000269,2]
[313352318,1707215165126,723.69211362,0.00029,30]
[313352357,1707215432162,-155.0,0.00018887,3]
[313352359,1707215432172,-285.18397126,0.00018888,2]
[313352386,1707215438179,-732.87544311,0.00018888,2]
[313352387,1707215438192,-2466.54599927,0.00018889,2]
[313352388,1707215438202,-2102.17221432,0.0002,2]
[313352389,1707215438211,-443.31826259,0.00021,2]
[313352390,1707215438220,-3176.09813163,0.00024,2]
[313352391,1707215438230,-271.78462197,0.000248,2]
[313352392,1707215438239,-535.03190243,0.00026662,2]
[313352393,1707215438249,-620.00102962,0.00026663,2]
[313352394,1707215438258,-163.94936542,0.000268,2]
[313352395,1707215438269,-212.2576361,0.00026849,2]
[313352396,1707215438278,-319.8,0.0002689,3]
[313352397,1707215438287,-1961.16113425,0.00026898,2]
[313352398,1707215438296,-688.55455126,0.00026898,2]
[313352399,1707215438306,-1485.70007743,0.00026898,2]
[313352400,1707215438319,-906.58926518,0.00026898,2]
[313352401,1707215438328,-777.08226838,0.00026898,2]
[313352402,1707215438338,-256.63321078,0.00026898,2]
[313352403,1707215438347,-106.72865001,0.00026898,2]
[313352404,1707215438359,-48.27134999,0.00026898,2]
[313352406,1707215438368,-155.0,0.00026898,2]
[313352408,1707215438377,-155.0,0.00026898,2]
[313352410,1707215438386,-891.84144399,0.00026899,2]
[313352412,1707215438398,-14.82800302,0.00026899,2]
[313352414,1707215438408,-9392.97842382,0.000269,2]
[313352416,1707215438420,-3567.44869436,0.000269,2]
[313352480,1707215441489,-779.52614367,0.000269,2]
[313352481,1707215441502,-260.659322,0.000269,2]
[313352594,1707216418104,-154.98450155,0.00022458,4]
[313352595,1707216418125,-323.94218908,0.00022458,2]
[313352596,1707216418149,-820.60094681,0.00022459,2]
[313352597,1707216418169,-154.98450155,0.0002246,2]
[313352598,1707216418189,-154.98450155,0.00022461,2]
[313352599,1707216418209,-1167.31900625,0.00022462,2]
[313352611,1707216533460,1000.0,0.0003,120]
[313352613,1707216559694,2000.0,0.0003,120]
[313352644,1707216632282,-3979.85245146,0.00022452,2]
[313352645,1707216632291,-154.98450155,0.00022452,4]
[313352646,1707216632301,-2466.54599927,0.00022453,2]
[313352647,1707216632310,-184.024594,0.00022473,2]
[313352648,1707216632320,-820.60094681,0.00023899,2]
[313352650,1707216632329,-352.26436716,0.000239,2]
[313352652,1707216632340,-6965.07362155,0.00023999,2]
[313352814,1707216644507,-155.00155002,0.00023998,2]
[313352815,1707216644517,-1015.22366541,0.00023999,2]
[313352816,1707216644527,-7107.07669191,0.00024,2]
[313352841,1707216649669,2000.0,0.0003,120]
[313352845,1707216737376,-1018.05941437,0.00023996,2]
[313352847,1707216737405,-155.00155002,0.00023997,4]
[313352848,1707216737431,-1804.43724042,0.00023998,2]
[313352849,1707216737462,-2395.50179519,0.00024,2]
[313352896,1707217832514,-467.09929999,0.00022254,2]
[313352897,1707217832526,-550.96011438,0.00022254,2]
[313352898,1707217832536,-131.10851167,0.00022254,2]
[313352899,1707217832570,-550.72657927,0.00022254,2]
[313352900,1707217832580,-389.32342073,0.00022255,2]
[313352901,1707217832591,-2019.82768151,0.00022255,2]
[313352935,1707217838616,-2466.54599927,0.00022253,2]
[313352936,1707217838627,-457.72304733,0.00022255,2]
[313353060,1707217841796,-1312.33075922,0.00022255,2]
[313353061,1707217841806,-155.01395126,0.00022256,4]
[313353062,1707217841815,-166.6666668,0.00022312,2]
[313353063,1707217841824,-245.5896049,0.00022557,2]
[313353064,1707217841834,-163.94936542,0.00023928,2]
[313353065,1707217841843,-820.60094681,0.00023997,2]
[313353066,1707217841852,-1324.45630252,0.00024,2]
[313353067,1707217841861,-300.0,0.00024,2]
[313353068,1707217841871,-2090.25573355,0.00024,2]
[313353069,1707217841884,-1155.61907742,0.00024,5]
[313353070,1707217841893,-962.5273942,0.00024014,2]
[313353071,1707217841902,-1243.01,0.00024018,3]
[313353072,1707217841911,-500.4980937,0.00024021,2]
[313353073,1707217841921,-2327.59996497,0.00024028,2]
[313353074,1707217841933,-1143.03235867,0.00024028,2]
[313353099,1707217843679,-4426.09880735,0.00024028,2]
[313353110,1707217846605,-270.52,0.00024028,2]
[313353112,1707217846669,-3.95468152,0.00024028,2]
[313353113,1707217846680,-14591.72452828,0.00024028,2]
[313353114,1707217846692,-955.92067015,0.00024028,2]
[313353192,1707219031749,-681.83509094,0.00021575,2]
[313353194,1707219031759,-155.00775039,0.00021576,4]
[313353196,1707219031768,-1018.05941437,0.00021577,2]
[313353197,1707219031779,-2466.54599927,0.00021578,2]
[313353199,1707219031788,-412.50085832,0.00021928,2]
[313353201,1707219031797,-46.73269807,0.00022198,2]
[313353246,1707219041255,-231.418884,0.00022195,2]
[313353248,1707219041265,-7711.24379903,0.00022198,2]
[313353250,1707219041276,-158.78242559,0.00023928,2]
[313353252,1707219041286,-2110.14234519,0.00024,2]
[313353254,1707219041297,-794.53042249,0.00024019,2]
[313353256,1707219041306,-230.1799417,0.00024019,2]
[313353306,1707219045860,-415.76027897,0.00024019,2]
[313353308,1707219045878,-1028.01994605,0.00024019,2]
[313353309,1707219045888,-1908.31,0.00024023,3]
[313353310,1707219045897,-1104.35,0.00024023,3]
[313353311,1707219045906,-210.61419513,0.00024026,2]
[313353312,1707219045916,-734.3299529,0.00024026,2]
[313353313,1707219045925,-1305.92168133,0.00024027,2]
[313353314,1707219045934,-3354.1550659,0.00024028,2]
[313353315,1707219045950,-738.89676804,0.00024028,2]
[313353316,1707219045959,-15834.92025326,0.00024028,2]
[313353317,1707219045970,-748.03005428,0.00024028,2]
[313353400,1707220231846,-155.01085076,0.00018579,2]
[313353401,1707220231856,-589.9320815,0.0001858,2]
[313353402,1707220231866,-640.24322624,0.00018581,2]
[313353403,1707220231875,-155.01085076,0.00018582,2]
[313353404,1707220231885,-820.60094681,0.00018582,2]
[313353405,1707220231894,-160.55683341,0.00018583,2]
[313353406,1707220231903,-906.00048725,0.00018681,2]
[313353407,1707220231913,-155.01085076,0.00018682,3]
[313353408,1707220231922,-2804.6901971,0.00018689,2]
[313353409,1707220231932,-231.418884,0.00019325,2]
[313353410,1707220231941,-2762.39368588,0.00019971,2]
[313353411,1707220231951,-1787.86,0.0001999,3]
[313353412,1707220231960,-1489.89,0.0001999,3]
[313353413,1707220231969,-1241.57,0.0001999,3]
[313353414,1707220231979,-155.38076215,0.00019999,2]
[313353415,1707220231988,-4520.7834948,0.0002,2]
[313353431,1707220237965,-5433.62071055,0.0002,2]
[313353432,1707220237978,-3608.73851996,0.0002,2]
[313353457,1707220241090,-1034.64,0.0001999,3]
[313353458,1707220241099,-53314.62867205,0.0002,2]
[313353459,1707220241145,-7612.49824059,0.0002,2]
[313353460,1707220241158,-9551.40233198,0.0002,2]
[313353461,1707220241170,-843.94215077,0.0002,2]
[313353462,1707220241181,-10167.03772715,0.0002,2]
[313353463,1707220241192,-2116.49478037,0.0002,2]
[313353489,1707220242948,-2549.71850685,0.0002,2]
[313353496,1707220243004,-6991.13486493,0.0002,2]
[313353499,1707220243013,-323.94218908,0.0002,2]
[313353502,1707220243023,-204.23686205,0.00021613,2]
[313353505,1707220243032,-329.29952644,0.00021613,2]
[313353509,1707220243042,-501.81023668,0.00021613,2]
[313353512,1707220243051,-501.81023668,0.00021613,2]
[313353515,1707220243060,-501.81023668,0.00021613,2]
[313353518,1707220243070,-501.81023668,0.00021613,2]
[313353521,1707220243079,-501.81023668,0.00021613,2]
[313353524,1707220243088,-501.81023668,0.00021613,2]
[313353527,1707220243096,-501.81023668,0.00021613,2]
[313353530,1707220243106,-501.81023668,0.00021613,2]
[313353532,1707220243115,-501.81023668,0.00021613,2]
[313353534,1707220243124,-501.81023668,0.00021613,2]
[313353536,1707220243133,-501.81023668,0.00021613,2]
[313353538,1707220243142,-501.81023668,0.00021613,2]
[313353540,1707220243151,-501.81023668,0.00021613,2]
[313353542,1707220243159,-501.81023668,0.00021613,2]
[313353544,1707220243168,-501.81023668,0.00021613,2]
[313353546,1707220243177,-501.81023668,0.00021613,2]
[313353548,1707220243186,-501.81023668,0.00021613,2]
[313353550,1707220243195,-501.81023668,0.00021613,2]
[313353552,1707220243204,-501.81023668,0.00021613,2]
[313353554,1707220243213,-501.81023668,0.00021613,2]
[313353556,1707220243222,-501.81023668,0.00021613,2]
[313353558,1707220243231,-501.81023668,0.00021613,2]
[313353560,1707220243239,-501.81023668,0.00021613,2]
[313353562,1707220243248,-501.81023668,0.00021613,2]
[313353564,1707220243258,-501.81023668,0.00021613,2]
[313353566,1707220243266,-501.81023668,0.00021613,2]
[313353568,1707220243275,-501.81023668,0.00021613,2]
[313353570,1707220243285,-501.81023668,0.00021613,2]
[313353572,1707220243293,-501.81023668,0.00021613,2]
[313353574,1707220243302,-501.81023668,0.00021613,2]
[313353575,1707220243311,-501.81023668,0.00021613,2]
[313353576,1707220243321,-501.81023668,0.00021613,2]
[313353577,1707220243330,-501.81023668,0.00021613,2]
[313353578,1707220243339,-501.81023668,0.00021613,2]
[313353579,1707220243348,-501.81023668,0.00021613,2]
[313353580,1707220243357,-501.81023668,0.00021613,2]
[313353581,1707220243366,-501.81023668,0.00021613,2]
[313353582,1707220243376,-501.81023668,0.00021613,2]
[313353583,1707220243385,-501.81023668,0.00021613,2]
[313353584,1707220243394,-501.81023668,0.00021613,2]
[313353585,1707220243404,-501.81023668,0.00021613,2]
[313353586,1707220243413,-501.81023668,0.00021613,2]
[313353587,1707220243422,-501.81023668,0.00021613,2]
[313353589,1707220243432,-501.81023668,0.00021613,2]
[313353591,1707220243441,-501.81023668,0.00021613,2]
[313353593,1707220243450,-501.81023668,0.00021613,2]
[313353595,1707220243460,-501.81023668,0.00021613,2]
[313353597,1707220243469,-501.81023668,0.00021613,2]
[313353599,1707220243479,-501.81023668,0.00021613,2]
[313353601,1707220243487,-501.81023668,0.00021613,2]
[313353603,1707220243496,-501.81023668,0.00021613,2]
[313353605,1707220243506,-501.81023668,0.00021613,2]
[313353607,1707220243516,-501.81023668,0.00021613,2]
[313353609,1707220243526,-501.81023668,0.00021613,2]
[313353611,1707220243534,-501.81023668,0.00021613,2]
[313353613,1707220243543,-501.81023668,0.00021613,2]
[313353615,1707220243555,-501.81023668,0.00021613,2]
[313353617,1707220243564,-501.81023668,0.00021613,2]
[313353619,1707220243574,-501.81023668,0.00021613,2]
[313353621,1707220243583,-501.81023668,0.00021613,2]
[313353623,1707220243591,-151.0,0.00021615,2]
[313353625,1707220243601,-151.0,0.00021615,2]
[313353627,1707220243612,-151.0,0.00021615,2]
[313353629,1707220243621,-151.0,0.00021615,2]
[313353630,1707220243631,-151.0,0.00021615,2]
[313353632,1707220243643,-151.0,0.00021615,2]
[313353634,1707220243652,-151.0,0.00021615,2]
[313353636,1707220243662,-151.0,0.00021615,2]
[313353638,1707220243672,-151.0,0.00021615,2]
[313353640,1707220243681,-238.102842,0.00021615,2]
[313353642,1707220243691,-400.687361,0.00021616,2]
[313353643,1707220243700,-400.687361,0.00021616,2]
[313353645,1707220243711,-400.687361,0.00021616,2]
[313353646,1707220243720,-400.687361,0.00021616,2]
[313353647,1707220243729,-400.687361,0.00021616,2]
[313353648,1707220243739,-400.687361,0.00021616,2]
[313353649,1707220243831,-400.687361,0.00021616,2]
[313353650,1707220243845,-400.687361,0.00021616,2]
[313353651,1707220243854,-400.687361,0.00021616,2]
[313353652,1707220243864,-400.687361,0.00021616,2]
[313353653,1707220243873,-400.687361,0.00021616,2]
[313353654,1707220243882,-400.687361,0.00021616,2]
[313353655,1707220243891,-151.0,0.00021616,2]
[313353656,1707220243900,-151.0,0.00021618,2]
[313353657,1707220243910,-400.687361,0.00021618,2]
[313353658,1707220243920,-400.687361,0.00021618,2]
[313353659,1707220243930,-151.0,0.00021618,2]
[313353660,1707220243939,-15656.25684209,0.00021618,2]
[313353661,1707220243948,-275.00057221,0.00021928,2]
[313353662,1707220243957,-200.0,0.00021967,7]
[313353663,1707220243967,-151.0,0.00021986,2]
[313353664,1707220243976,-151.0,0.00022257,2]
[313353665,1707220243986,-151.0,0.00023972,2]
[313353666,1707220243995,-2465.67574349,0.00024026,2]
[313353667,1707220244005,-161.39805278,0.00024026,2]
[313353668,1707220244015,-2762.73867494,0.00024026,2]
[313353669,1707220244026,-1116.07131128,0.00024026,2]
[313353670,1707220244035,-400.687361,0.00024026,2]
[313353671,1707220244044,-400.687361,0.00024026,2]
[313353672,1707220244054,-151.0,0.00024026,2]
[313353673,1707220244063,-415.77018585,0.00024027,2]
[313353674,1707220244073,-19540.84794445,0.00024027,2]
[313353675,1707220244082,-400.687361,0.00024027,2]
[313353676,1707220244093,-400.687361,0.00024027,2]
[313353677,1707220244102,-151.0,0.00024027,2]
[313353678,1707220244112,-17294.15775197,0.00024028,2]
[313353679,1707220244121,-313.11416557,0.00024028,6]
[313353680,1707220244130,-155.02015262,0.00024028,2]
[313353681,1707220244139,-300.0,0.00024028,2]
[313353682,1707220244148,-621.90621018,0.00024028,2]
[313353683,1707220244158,-155.01395126,0.00024028,2]
[313353684,1707220244167,-10462.83887223,0.00024028,2]
[313353685,1707220244177,-179.814012,0.00024028,2]
[313353686,1707220244186,-400.687361,0.00024028,2]
[313353687,1707220244196,-400.687369,0.00024028,2]
[313353688,1707220244206,-2240.50105804,0.0002404,2]
[313353689,1707220244215,-10687.89061196,0.0002404,2]
[313353690,1707220244224,-1870.38085709,0.0002404,2]
[313353691,1707220244233,-2086.9450813,0.0002404,2]
[313353692,1707220244242,-14486.71988434,0.0002404,2]
[313353693,1707220244251,-280.0,0.00024164,7]
[313353694,1707220244260,-2320.684879,0.0002498,2]
[313353695,1707220244269,-523.51337135,0.00025,3]
[313353696,1707220244280,-155.01085076,0.00025,2]
[313353697,1707220244289,-3141.21618564,0.00025,2]
[313353698,1707220244299,-4737.09564271,0.00025,2]
[313353699,1707220244308,-535.03190243,0.00025,2]
[313353700,1707220244317,-7404.37733039,0.00025,2]
[313353701,1707220244327,-1000.0,0.00025,2]
[313353702,1707220244336,-1000.0,0.00025,2]
[313353703,1707220244346,-500.9256154,0.00025179,2]
[313353704,1707220244356,-725.04628077,0.00025179,2]
[313353705,1707220244365,-470.62152894,0.00025179,2]
[313353706,1707220244374,-422.05061328,0.00025179,2]
[313353707,1707220244382,-151.79564103,0.0002518,2]
[313353708,1707220244391,-153.0,0.00025205,2]
[313353709,1707220244400,-153.0,0.00025205,2]
[313353710,1707220244409,-153.0,0.00025205,2]
[313353711,1707220244418,-153.0,0.00025205,2]
[313353712,1707220244428,-153.0,0.00025205,2]
[313353713,1707220244437,-620.02999763,0.00025266,2]
[313353714,1707220244446,-158.8308104,0.00025342,2]
[313353715,1707220244455,-200.0,0.00025479,2]
[313353716,1707220244465,-153.0,0.00025753,2]
[313353717,1707220244474,-151.0,0.00025959,2]
[313353718,1707220244483,-309.92404905,0.000261,2]
[313353719,1707220244492,-942.64079303,0.00026228,2]
[313353720,1707220244501,-5220.96019101,0.00026229,2]
[313353721,1707220244510,-352.1195832,0.00026229,2]
[313353722,1707220244519,-5000.0,0.00026233,2]
[313353723,1707220244530,-620.00149988,0.0002653,2]
[313353724,1707220244539,-391.0,0.0002658,15]
[313353725,1707220244547,-200.0,0.00026631,2]
[313353726,1707220244556,-200.0,0.00026631,2]
[313353727,1707220244565,-400.0,0.00026631,2]
[313353728,1707220244574,-4545.79393046,0.000268,2]
[313353729,1707220244583,-1788.68585744,0.000268,2]
[313353730,1707220244591,-601.78834068,0.00026898,2]
[313353731,1707220244600,-336.81741063,0.00026898,2]
[313353732,1707220244609,-3000.0,0.000269,2]
[313353733,1707220244618,-275.00057221,0.00026928,2]
[313353734,1707220244626,-1000.0,0.00026932,3]
[313353735,1707220244635,-12026.56445011,0.00027,2]
[313353736,1707220244647,-1000.0,0.00027,27]
[313353737,1707220244656,-154.98112192,0.00027012,2]
[313353738,1707220244664,-159.07832901,0.00027108,2]
[313353739,1707220244673,-775.85608884,0.00027121,2]
[313353740,1707220244683,-200.0,0.00027123,2]
[313353741,1707220244691,-200.0,0.00027123,2]
[313353742,1707220244700,-200.0,0.00027123,2]
[313353743,1707220244710,-200.0,0.00027123,2]
[313353744,1707220244721,-200.0,0.00027123,2]
[313353745,1707220244730,-200.0,0.00027123,2]
[313353746,1707220244739,-200.0,0.00027123,2]
[313353747,1707220244748,-200.0,0.00027123,2]
[313353748,1707220244757,-200.0,0.00027123,2]
[313353749,1707220244766,-200.0,0.00027123,2]
[313353750,1707220244777,-200.0,0.00027123,2]
[313353751,1707220244786,-200.0,0.00027123,2]
[313353752,1707220244795,-200.0,0.00027123,2]
[313353753,1707220244804,-200.0,0.00027123,2]
[313353754,1707220244814,-200.0,0.00027123,2]
[313353755,1707220244823,-200.0,0.00027123,2]
[313353756,1707220244832,-200.0,0.00027123,2]
[313353757,1707220244841,-200.0,0.00027123,2]
[313353758,1707220244850,-200.0,0.00027123,2]
[313353759,1707220244859,-200.0,0.00027123,2]
[313353760,1707220244869,-200.0,0.00027123,2]
[313353761,1707220244878,-200.0,0.00027123,2]
[313353762,1707220244888,-200.0,0.00027123,2]
[313353763,1707220244897,-200.0,0.00027123,2]
[313353764,1707220244906,-200.0,0.00027123,2]
[313353765,1707220244915,-200.0,0.00027123,2]
[313353766,1707220244924,-200.0,0.00027123,2]
[313353767,1707220244933,-200.0,0.00027123,2]
[313353768,1707220244943,-200.0,0.00027123,2]
[313353769,1707220244952,-200.0,0.00027123,2]
[313353770,1707220244961,-200.0,0.00027123,2]
[313353771,1707220244970,-200.0,0.00027123,2]
[313353772,1707220244979,-200.0,0.00027123,2]
[313353773,1707220244989,-200.0,0.00027123,2]
[313353774,1707220244997,-200.0,0.00027123,2]
[313353775,1707220245007,-207.91768,0.00027123,2]
[313353776,1707220245017,-158.93674939,0.00027145,2]
[313353777,1707220245027,-182.834187,0.00027211,2]
[313353778,1707220245036,-171.070953,0.00027211,2]
[313353779,1707220245044,-190.211788,0.00027211,2]
[313353780,1707220245053,-210.732726,0.00027211,2]
[313353781,1707220245062,-156.38818445,0.00027294,2]
[313353782,1707220245072,-3989.07882535,0.00027294,2]
[313353783,1707220245081,-688.55455126,0.00027294,2]
[313353784,1707220245090,-1200.96451979,0.00027294,2]
[313353785,1707220245099,-1048.37660633,0.00027294,2]
[313353786,1707220245108,-155.99729501,0.00027295,2]
[313353787,1707220245118,-199.79817846,0.00027391,2]
[313353788,1707220245127,-426.52191671,0.00027395,2]
[313353789,1707220245137,-188.73696254,0.00027395,2]
[313353790,1707220245146,-155.42263351,0.00027395,2]
[313353791,1707220245155,-326.04786116,0.00027395,2]
[313353792,1707220245164,-182.01363394,0.00027395,2]
[313353793,1707220245173,-175.97648506,0.00027395,2]
[313353794,1707220245182,-450.04691741,0.00027395,2]
[313353795,1707220245191,-1701.30850405,0.00027395,2]
[313353796,1707220245200,-1785.91754342,0.00027396,2]
[313353797,1707220245209,-271.64653781,0.00027396,2]
[313353798,1707220245218,-246.55805965,0.00027396,2]
[313353799,1707220245227,-163.16498011,0.00027396,2]
[313353800,1707220245236,-500.0,0.00027396,2]
[313353801,1707220245244,-289.94873796,0.00027396,2]
[313353802,1707220245254,-395.26736702,0.00027396,2]
[313353803,1707220245263,-500.0,0.00027396,2]
[313353804,1707220245272,-500.0,0.00027396,2]
[313353805,1707220245281,-298.90020053,0.00027396,2]
[313353806,1707220245291,-363.33378531,0.00027396,2]
[313353807,1707220245300,-500.0,0.00027396,2]
[313353808,1707220245309,-500.0,0.00027396,2]
[313353809,1707220245318,-500.0,0.00027396,2]
[313353810,1707220245327,-190.23405047,0.00027396,2]
[313353812,1707220245336,-500.0,0.00027396,2]
[313353814,1707220245345,-500.0,0.00027396,2]
[313353816,1707220245354,-500.0,0.00027396,2]
[313353818,1707220245363,-500.0,0.00027396,2]
[313353819,1707220245372,-1802.87586728,0.00027397,7]
[313353820,1707220245381,-500.0,0.00027397,3]
[313353821,1707220245391,-501.25,0.00027397,3]
[313353822,1707220245400,-424.6352201,0.00027397,3]
[313353823,1707220245408,-479.7700715,0.00027397,3]
[313353824,1707220245418,-500.0,0.00027397,3]
[313353825,1707220245426,-500.0,0.00027397,3]
[313353827,1707220245435,-500.43781415,0.00027397,3]
[313353828,1707220245444,-511.05916981,0.00027397,3]
[313353829,1707220245453,-511.24718274,0.00027397,3]
[313353830,1707220245462,-387.40722814,0.00027397,2]
[313353831,1707220245471,-1000.0,0.00027397,2]
[313353832,1707220245480,-509.31752061,0.00027397,3]
[313353833,1707220245489,-172.53939877,0.00027397,3]
[313353834,1707220245498,-507.86117609,0.00027397,3]
[313353835,1707220245507,-584.92808444,0.00027397,3]
[313353836,1707220245516,-500.0,0.00027397,3]
[313353837,1707220245525,-519.4150698,0.00027397,3]
[313353838,1707220245534,-154.86153082,0.00027397,3]
[313353839,1707220245544,-519.52382131,0.00027397,3]
[313353840,1707220245553,-509.19776611,0.00027397,3]
[313353843,1707220245562,-266.81353244,0.00027397,3]
[313353845,1707220245571,-596.7293582,0.00027397,3]
[313353846,1707220245581,-500.0,0.00027397,3]
[313353847,1707220245590,-356.07658492,0.00027397,3]
[313353848,1707220245600,-500.0,0.00027397,2]
[313353849,1707220245609,-500.0,0.00027397,3]
[313353850,1707220245618,-202.55252808,0.00027397,3]
[313353851,1707220245627,-500.0,0.00027397,3]
[313353852,1707220245638,-500.0,0.00027397,3]
[313353853,1707220245648,-504.05354757,0.00027397,3]
[313353854,1707220245658,-304.94593763,0.00027397,3]
[313353855,1707220245668,-500.0,0.00027397,3]
[313353856,1707220245677,-371.15154184,0.00027397,3]
[313353857,1707220245687,-500.0,0.00027397,3]
[313353858,1707220245696,-500.0,0.00027397,3]
[313353859,1707220245706,-500.0,0.00027397,3]
[313353860,1707220245715,-500.0,0.00027397,3]
[313353861,1707220245725,-587.56339577,0.00027397,3]
[313353862,1707220245735,-677.88,0.00027397,3]
[313353863,1707220245744,-544.62522732,0.00027397,3]
[313353866,1707220245831,-500.0,0.00027397,3]
[313353867,1707220245841,-1034.92,0.00027397,3]
[313353868,1707220245851,-500.0,0.00027397,3]
[313353869,1707220245861,-500.26192483,0.00027397,3]
[313353870,1707220245870,-500.0,0.00027397,3]
[313353871,1707220245880,-500.0,0.00027397,3]
[313353872,1707220245890,-500.0,0.00027397,3]
[313353873,1707220245899,-500.0,0.00027397,3]
[313353874,1707220245909,-500.0,0.00027397,3]
[313353875,1707220245919,-500.0,0.00027397,3]
[313353876,1707220245928,-500.0,0.00027397,3]
[313353877,1707220245938,-500.0,0.00027397,3]
[313353878,1707220245948,-500.0,0.00027397,3]
[313353879,1707220245958,-625.5,0.00027397,3]
[313353880,1707220245968,-625.5,0.00027397,3]
[313353881,1707220245978,-625.5,0.00027397,3]
[313353882,1707220245987,-625.5,0.00027397,3]
[313353883,1707220245996,-625.5,0.00027397,3]
[313353884,1707220246006,-625.5,0.00027397,3]
[313353885,1707220246016,-625.5,0.00027397,3]
[313353886,1707220246027,-625.5,0.00027397,3]
[313353887,1707220246037,-625.5,0.00027397,3]
[313353888,1707220246046,-625.5,0.00027397,3]